fUST/lending_fUST_20241021
["ID","MTS","AMOUNT","RATE_DAILY","PERIOD"]
[340602574,1729521039782,-500.0,0.00016438,2]
[340602575,1729521039792,-500.0,0.00016438,2]
[340602576,1729521039801,-500.0,0.00016438,2]
[340602577,1729521039810,-500.0,0.00016438,2]
[340602578,1729521039819,-500.0,0.00016438,2]
[340602579,1729521039828,-1381.84,0.00016438,2]
[340602580,1729521039837,-500.0,0.00016438,2]
[340602581,1729521039846,-1291.35,0.00016438,2]
[340602591,1729521040075,-500.0,0.00016438,2]
[340602593,1729521040086,-500.0,0.00016438,2]
[340602595,1729521040096,-554.07233275,0.00016438,2]
[340602597,1729521040105,-500.0,0.00016438,2]
[340602599,1729521040115,-348.14159679,0.00016438,2]
[340602601,1729521040124,-500.0,0.00016438,2]
[340602603,1729521040135,-500.0,0.00016438,2]
[340602605,1729521040144,-500.0,0.00016438,2]
[340602607,1729521040154,-500.0,0.00016438,2]
[340602609,1729521040164,-500.0,0.00016438,2]
[340602612,1729521040174,-500.0,0.00016438,2]
[340602614,1729521040183,-2299.43,0.00016438,2]
[340602616,1729521040192,-694.09,0.00016438,2]
[340602617,1729521040201,-508.51436058,0.00016438,2]
[340602619,1729521040210,-500.0,0.00016438,2]
[340602621,1729521040220,-500.0,0.00016438,2]
[340602623,1729521040229,-500.0,0.00016438,2]
[340602625,1729521040238,-500.0,0.00016438,2]
[340602627,1729521040247,-500.0,0.00016438,2]
[340602629,1729521040256,-1278.32,0.00016438,2]
[340602631,1729521040266,-924.74,0.00016438,2]
[340602633,1729521040275,-500.0,0.00016438,2]
[340602635,1729521040285,-500.0,0.00016438,2]
[340602637,1729521040294,-500.0,0.00016438,2]
[340602639,1729521040303,-500.0,0.00016438,2]
[340602641,1729521040314,-500.0,0.00016438,2]
[340602643,1729521040323,-500.0,0.00016438,2]
[340602645,1729521040333,-500.0,0.00016438,2]
[340602647,1729521040342,-521.88034201,0.00016438,2]
[340602649,1729521040351,-744.54,0.00016438,2]
[340602651,1729521040360,-500.0,0.00016438,2]
[340602653,1729521040369,-500.0,0.00016438,2]
[340602655,1729521040378,-636.99,0.00016438,2]
[340602657,1729521040388,-500.0,0.00016438,2]
[340602659,1729521040397,-961.67,0.00016438,2]
[340602661,1729521040406,-205.65,0.00016438,2]
[340602663,1729521040416,-500.0,0.00016438,2]
[340602665,1729521040425,-500.0,0.00016438,2]
[340602667,1729521040435,-547.81355773,0.00016438,2]
[340602669,1729521040444,-500.45812343,0.00016438,2]
[340602671,1729521040454,-500.0,0.00016438,2]
[340602673,1729521040464,-512.86,0.00016438,2]
[340602674,1729521040473,-708.92,0.00016438,2]
[340602676,1729521040483,-500.0,0.00016438,2]
[340602678,1729521040492,-500.0,0.00016438,2]
[340602680,1729521040502,-500.0,0.00016438,2]
[340602682,1729521040511,-1009.69,0.00016438,2]
[340602684,1729521040524,-500.0,0.00016438,2]
[340602686,1729521040533,-1769.81,0.00016438,2]
[340602688,1729521040542,-500.0,0.00016438,2]
[340602690,1729521040551,-321.44456386,0.00016438,2]
[340602692,1729521040561,-500.0,0.00016438,2]
[340602694,1729521040571,-500.0,0.00016438,2]
[340602695,1729521040579,-465.39530781,0.00016438,2]
[340602698,1729521040589,-500.0,0.00016438,2]
[340602699,1729521040599,-500.0,0.00016438,2]
[340602702,1729521040608,-500.0,0.00016438,2]
[340602703,1729521040617,-500.0,0.00016438,2]
[340602705,1729521040627,-911.47,0.00016438,2]
[340602707,1729521040636,-500.0,0.00016438,2]
[340602709,1729521040646,-599.32,0.00016438,2]
[340602711,1729521040655,-500.0,0.00016438,2]
[340602712,1729521040665,-599.24932482,0.00016438,2]
[340602713,1729521040674,-500.0,0.00016438,2]
[340602714,1729521040683,-500.0,0.00016438,2]
[340602715,1729521040693,-959.1,0.00016438,2]
[340602716,1729521040702,-187.24454827,0.00016438,2]
[340602717,1729521040712,-804.51,0.00016438,2]
[340602718,1729521040721,-592.78,0.00016438,2]
[340602719,1729521040732,-259.8842527,0.00016438,2]
[340602720,1729521040742,-500.0,0.00016438,2]
[340602721,1729521040751,-500.0,0.00016438,2]
[340602722,1729521040761,-805.93,0.00016438,2]
[340602723,1729521040770,-500.0,0.00016438,2]
[340602724,1729521040779,-500.0,0.00016438,2]
[340602725,1729521040789,-2562.11,0.00016438,2]
[340602726,1729521040798,-500.0,0.00016438,2]
[340602727,1729521040807,-500.0,0.00016438,2]
[340602728,1729521040818,-500.0,0.00016438,2]
[340602729,1729521040827,-500.0,0.00016438,2]
[340602730,1729521040837,-500.0,0.00016438,2]
[340602731,1729521040846,-500.0,0.00016438,2]
[340602732,1729521040856,-500.0,0.00016438,2]
[340602733,1729521040865,-573.10261298,0.00016438,2]
[340602734,1729521040875,-500.0,0.00016438,2]
[340602735,1729521040885,-767.12,0.00016438,2]
[340602736,1729521040894,-500.0,0.00016438,2]
[340602737,1729521040903,-500.0,0.00016438,2]
[340602738,1729521040913,-500.0,0.00016438,2]
[340602739,1729521040922,-204.1002286,0.00016438,2]
[340602740,1729521040931,-500.0,0.00016438,2]
[340602741,1729521040941,-500.0,0.00016438,2]
[340602743,1729521040951,-746.33,0.00016438,2]
[340602744,1729521040961,-500.0,0.00016438,2]
[340602745,1729521040970,-500.0,0.00016438,2]
[340602747,1729521040981,-657.27,0.00016438,2]
[340602749,1729521040990,-500.77455274,0.00016438,2]
[340602751,1729521040999,-722.27,0.00016438,2]
[340602753,1729521041008,-500.0,0.00016438,2]
[340602755,1729521041018,-500.0,0.00016438,2]
[340602757,1729521041027,-1567.34,0.00016438,2]
[340602759,1729521041036,-881.12,0.00016438,2]
[340602760,1729521041045,-500.0,0.00016438,2]
[340602762,1729521041055,-1952.09,0.00016438,2]
[340602764,1729521041067,-500.0,0.00016438,2]
[340602766,1729521041076,-500.0,0.00016438,2]
[340602768,1729521041085,-500.0,0.00016438,2]
[340602770,1729521041095,-299.57837491,0.00016438,2]
[340602772,1729521041104,-500.0,0.00016438,2]
[340602774,1729521041113,-479.98010519,0.00016438,2]
[340602776,1729521041122,-1812.48,0.00016438,2]
[340602778,1729521041132,-1011.79,0.00016438,2]
[340602780,1729521041141,-500.0,0.00016438,2]
[340602782,1729521041150,-570.6707957,0.00016438,2]
[340602784,1729521041159,-1070.72,0.00016438,2]
[340602785,1729521041168,-500.0,0.00016438,2]
[340602787,1729521041178,-500.0,0.00016438,2]
[340602789,1729521041188,-500.0,0.00016438,2]
[340602791,1729521041197,-500.0,0.00016438,2]
[340602793,1729521041206,-500.0,0.00016438,2]
[340602795,1729521041215,-500.0,0.00016438,2]
[340602797,1729521041225,-500.0,0.00016438,2]
[340602799,1729521041234,-500.0,0.00016438,2]
[340602801,1729521041243,-500.0,0.00016438,2]
[340602803,1729521041252,-516.5148984,0.00016438,2]
[340602805,1729521041261,-500.0,0.00016438,2]
[340602807,1729521041270,-849.51,0.00016438,2]
[340602808,1729521041279,-500.0,0.00016438,2]
[340602811,1729521041289,-2044.72,0.00016438,2]
[340602812,1729521041300,-683.45,0.00016438,2]
[340602815,1729521041311,-1701.47,0.00016438,2]
[340602816,1729521041320,-500.0,0.00016438,2]
[340602818,1729521041330,-716.98,0.00016438,2]
[340602820,1729521041339,-1143.59,0.00016438,2]
[340602822,1729521041349,-500.0,0.00016438,2]
[340602824,1729521041358,-1360.79,0.00016438,2]
[340602826,1729521041367,-500.0,0.00016438,2]
[340602828,1729521041376,-545.23962103,0.00016438,2]
[340602830,1729521041386,-500.0,0.00016438,2]
[340602832,1729521041395,-500.0,0.00016438,2]
[340602834,1729521041405,-500.0,0.00016438,2]
[340602836,1729521041414,-500.0,0.00016438,2]
[340602838,1729521041425,-500.0,0.00016438,2]
[340602840,1729521041435,-500.0,0.00016438,2]
[340602842,1729521041445,-500.0,0.00016438,2]
[340602844,1729521041454,-500.0,0.00016438,2]
[340602846,1729521041464,-500.0,0.00016438,2]
[340602848,1729521041473,-903.5,0.00016438,2]
[340602850,1729521041482,-500.0,0.00016438,2]
[340602852,1729521041492,-500.0,0.00016438,2]
[340602854,1729521041502,-500.0,0.00016438,2]
[340602856,1729521041512,-500.0,0.00016438,2]
[340602858,1729521041525,-500.0,0.00016438,2]
[340602860,1729521041534,-775.15,0.00016438,2]
[340602862,1729521041544,-500.0,0.00016438,2]
[340602864,1729521041554,-500.0,0.00016438,2]
[340602866,1729521041565,-500.0,0.00016438,2]
[340602868,1729521041575,-1110.56,0.00016438,2]
[340602870,1729521041584,-500.0,0.00016438,2]
[340602872,1729521041598,-937.85,0.00016438,2]
[340602874,1729521041607,-500.0,0.00016438,2]
[340602876,1729521041616,-629.59,0.00016438,2]
[340602878,1729521041626,-500.0,0.00016438,2]
[340602880,1729521041635,-500.0,0.00016438,2]
[340602882,1729521041644,-500.0,0.00016438,2]
[340602884,1729521041653,-491.14728414,0.00016438,2]
[340602886,1729521041662,-500.0,0.00016438,2]
[340602888,1729521041671,-500.0,0.00016438,2]
[340602890,1729521041681,-404.67113188,0.00016438,2]
[340602892,1729521041692,-184.2546354,0.00016438,2]
[340602894,1729521041701,-1384.56,0.00016438,2]
[340602896,1729521041710,-500.0,0.00016438,2]
[340602897,1729521041719,-1014.96,0.00016438,2]
[340602899,1729521041728,-830.37,0.00016438,2]
[340602901,1729521041737,-500.0,0.00016438,2]
[340602903,1729521041746,-500.0,0.00016438,2]
[340602905,1729521041756,-505.11202141,0.00016438,2]
[340602907,1729521041765,-500.0,0.00016438,2]
[340602909,1729521041775,-752.53,0.00016438,2]
[340602911,1729521041784,-500.0,0.00016438,2]
[340602913,1729521041793,-153.830803,0.00016438,2]
[340602915,1729521041803,-353.39670182,0.00016438,2]
[340602917,1729521041812,-1625.03,0.00016438,2]
[340602919,1729521041821,-151.0,0.00016438,2]
[340602921,1729521041831,-500.0,0.00016438,2]
[340602923,1729521041840,-500.0,0.00016438,2]
[340602925,1729521041849,-500.0,0.00016438,2]
[340602927,1729521041858,-500.0,0.00016438,2]
[340602929,1729521041868,-500.0,0.00016438,2]
[340602930,1729521041877,-500.0,0.00016438,2]
[340602932,1729521041886,-500.0,0.00016438,2]
[340602934,1729521041895,-709.25,0.00016438,2]
[340602936,1729521041905,-709.25,0.00016438,2]
[340602938,1729521041914,-709.25,0.00016438,2]
[340602940,1729521041923,-512.14500545,0.00016438,2]
[340602942,1729521041933,-709.25,0.00016438,2]
[340602944,1729521041942,-709.25,0.00016438,2]
[340602946,1729521041952,-500.0,0.00016438,2]
[340602948,1729521041961,-709.25,0.00016438,2]
[340602950,1729521041970,-2140.03,0.00016438,2]
[340602952,1729521041979,-709.25,0.00016438,2]
[340602954,1729521041989,-709.25,0.00016438,2]
[340602956,1729521041998,-709.25,0.00016438,2]
[340602958,1729521042007,-2024.36,0.00016438,2]
[340602960,1729521042017,-956.55,0.00016438,2]
[340602962,1729521042026,-709.25,0.00016438,2]
[340602964,1729521042035,-709.25,0.00016438,2]
[340602966,1729521042044,-709.25,0.00016438,2]
[340602968,1729521042054,-720.93,0.00016438,2]
[340602970,1729521042062,-504.85147362,0.00016438,2]
[340602971,1729521042071,-709.25,0.00016438,2]
[340602973,1729521042081,-500.0,0.00016438,2]
[340602975,1729521042090,-709.25,0.00016438,2]
[340602977,1729521042099,-709.25,0.00016438,2]
[340602979,1729521042108,-709.25,0.00016438,2]
[340602981,1729521042117,-709.25,0.00016438,2]
[340602983,1729521042126,-709.25,0.00016438,2]
[340602985,1729521042135,-709.25,0.00016438,2]
[340602987,1729521042144,-709.25,0.00016438,2]
[340602989,1729521042154,-500.0,0.00016438,2]
[340602991,1729521042163,-709.25,0.00016438,2]
[340602993,1729521042172,-709.25,0.00016438,2]
[340602995,1729521042181,-709.25,0.00016438,2]
[340602997,1729521042191,-709.34983704,0.00016438,2]
[340602999,1729521042201,-500.0,0.00016438,2]
[340603001,1729521042211,-571.352854,0.00016438,2]
[340603002,1729521042220,-500.0,0.00016438,2]
[340603004,1729521042229,-752.39,0.00016438,2]
[340603006,1729521042238,-500.0,0.00016438,2]
[340603008,1729521042247,-500.0,0.00016438,2]
[340603010,1729521042257,-1917.46,0.00016438,2]
[340603012,1729521042267,-1235.24,0.00016438,2]
[340603014,1729521042277,-500.0,0.00016438,2]
[340603016,1729521042286,-212.96479063,0.00016438,2]
[340603018,1729521042296,-746.65,0.00016438,2]
[340603020,1729521042305,-500.0,0.00016438,2]
[340603022,1729521042315,-500.0,0.00016438,2]
[340603024,1729521042324,-637.54,0.00016438,2]
[340603026,1729521042333,-500.0,0.00016438,2]
[340603028,1729521042342,-1920.39,0.00016438,2]
[340603030,1729521042351,-500.0,0.00016438,2]
[340603032,1729521042361,-305.22878819,0.00016438,2]
[340603033,1729521042370,-227.715883,0.00016438,2]
[340603035,1729521042379,-227.715883,0.00016438,2]
[340603037,1729521042388,-227.715883,0.00016438,2]
[340603039,1729521042397,-500.0,0.00016438,2]
[340603041,1729521042406,-500.0,0.00016438,2]
[340603043,1729521042415,-227.715883,0.00016438,2]
[340603045,1729521042428,-227.715883,0.00016438,2]
[340603047,1729521042437,-2224.03,0.00016438,2]
[340603049,1729521042447,-227.715883,0.00016438,2]
[340603051,1729521042456,-500.0,0.00016438,2]
[340603053,1729521042466,-500.0,0.00016438,2]
[340603055,1729521042475,-500.0,0.00016438,2]
[340603056,1729521042484,-1562.22,0.00016438,2]
[340603058,1729521042493,-500.0,0.00016438,2]
[340603060,1729521042503,-1482.02,0.00016438,2]
[340603061,1729521042514,-151.0,0.00016438,2]
[340603062,1729521042524,-151.0,0.00016438,2]
[340603063,1729521042534,-151.0,0.00016438,2]
[340603064,1729521042543,-500.0,0.00016438,2]
[340603065,1729521042552,-549.47534012,0.00016438,2]
[340603066,1729521042563,-500.0,0.00016438,2]
[340603068,1729521042571,-896.14,0.00016438,2]
[340603070,1729521042581,-541.63004014,0.00016438,2]
[340603072,1729521042590,-2256.39,0.00016438,2]
[340603074,1729521042599,-497.78967187,0.00016438,2]
[340603076,1729521042608,-1828.19,0.00016438,2]
[340603078,1729521042617,-918.31,0.00016438,2]
[340603080,1729521042627,-500.0,0.00016438,2]
[340603081,1729521042637,-529.08104172,0.00016438,2]
[340603082,1729521042646,-1649.56,0.00016438,2]
[340603083,1729521042656,-542.45,0.00016438,2]
[340603084,1729521042665,-471.76501859,0.00016438,2]
[340603085,1729521042674,-3016.69,0.00016438,2]
[340603086,1729521042684,-500.0,0.00016438,2]
[340603087,1729521042693,-798.31,0.00016438,2]
[340603088,1729521042702,-500.0,0.00016438,2]
[340603089,1729521042712,-500.0,0.00016438,2]
[340603090,1729521042721,-962.24,0.00016438,2]
[340603091,1729521042730,-500.0,0.00016438,2]
[340603092,1729521042739,-1789.8,0.00016438,2]
[340603093,1729521042748,-500.0,0.00016438,2]
[340603094,1729521042757,-2818.55,0.00016438,2]
[340603095,1729521042766,-500.0,0.00016438,2]
[340603096,1729521042775,-500.0,0.00016438,2]
[340603097,1729521042785,-566.92533978,0.00016438,2]
[340603098,1729521042794,-500.0,0.00016438,2]
[340603099,1729521042803,-500.0,0.00016438,2]
[340603100,1729521042812,-668.83,0.00016438,2]
[340603101,1729521042822,-500.0,0.00016438,2]
[340603103,1729521042831,-151.0,0.00016438,2]
[340603105,1729521042841,-151.0,0.00016438,2]
[340603106,1729521042851,-151.0,0.00016438,2]
[340603107,1729521042860,-500.0,0.00016438,2]
[340603108,1729521042869,-1030.25,0.00016438,2]
[340603109,1729521042879,-500.0,0.00016438,2]
[340603110,1729521042889,-500.0,0.00016438,2]
[340603111,1729521042898,-1064.3,0.00016438,2]
[340603112,1729521042908,-518.95,0.00016438,2]
[340603113,1729521042917,-501.36486751,0.00016438,2]
[340603114,1729521042927,-500.0,0.00016438,2]
[340603115,1729521042936,-500.0,0.00016438,2]
[340603116,1729521042946,-500.0,0.00016438,2]
[340603118,1729521042956,-213.07866943,0.00016438,2]
[340603120,1729521042965,-500.0,0.00016438,2]
[340603122,1729521042975,-533.11011294,0.00016438,2]
[340603123,1729521042984,-542.84091426,0.00016438,2]
[340603125,1729521042994,-1515.23,0.00016438,2]
[340603127,1729521043004,-503.07827068,0.00016438,2]
[340603128,1729521043014,-500.0,0.00016438,2]
[340603129,1729521043023,-1295.02,0.00016438,2]
[340603130,1729521043033,-500.0,0.00016438,2]
[340603131,1729521043043,-500.0,0.00016438,2]
[340603132,1729521043052,-500.0,0.00016438,2]
[340603133,1729521043062,-500.0,0.00016438,2]
[340603134,1729521043071,-215.97033511,0.00016438,2]
[340603136,1729521043081,-1812.14,0.00016438,2]
[340603138,1729521043090,-500.0,0.00016438,2]
[340603139,1729521043100,-500.0,0.00016438,2]
[340603140,1729521043109,-500.0,0.00016438,2]
[340603141,1729521043119,-623.79,0.00016438,2]
[340603142,1729521043128,-500.0,0.00016438,2]
[340603143,1729521043137,-2625.9,0.00016438,2]
[340603144,1729521043146,-500.0,0.00016438,2]
[340603145,1729521043155,-761.1,0.00016438,2]
[340603146,1729521043165,-1933.6,0.00016438,2]
[340603147,1729521043175,-500.0,0.00016438,2]
[340603148,1729521043184,-832.48,0.00016438,2]
[340603149,1729521043194,-2366.41,0.00016438,2]
[340603150,1729521043204,-500.0,0.00016438,2]
[340603151,1729521043214,-1598.66,0.00016438,2]
[340603152,1729521043223,-849.43,0.00016438,2]
[340603153,1729521043233,-500.0,0.00016438,2]
[340603154,1729521043242,-500.0,0.00016438,2]
[340603155,1729521043252,-1925.77,0.00016438,2]
[340603156,1729521043262,-151.0,0.00016438,2]
[340603157,1729521043271,-428.48039697,0.00016438,2]
[340603158,1729521043281,-1121.85,0.00016438,2]
[340603159,1729521043290,-151.0,0.00016438,2]
[340603160,1729521043299,-151.0,0.00016438,2]
[340603161,1729521043309,-500.0,0.00016438,2]
[340603163,1729521043320,-500.0,0.00016438,2]
[340603165,1729521043330,-500.0,0.00016438,2]
[340603167,1729521043339,-501.38190217,0.00016438,2]
[340603168,1729521043348,-151.0,0.00016438,2]
[340603169,1729521043357,-151.0,0.00016438,2]
[340603170,1729521043367,-151.0,0.00016438,2]
[340603171,1729521043377,-500.0,0.00016438,2]
[340603172,1729521043387,-512.71989966,0.00016438,2]
[340603173,1729521043396,-500.0,0.00016438,2]
[340603174,1729521043406,-1317.52,0.00016438,2]
[340603175,1729521043415,-500.0,0.00016438,2]
[340603176,1729521043425,-500.0,0.00016438,2]
[340603177,1729521043435,-913.39,0.00016438,2]
[340603178,1729521043444,-1723.9,0.00016438,2]
[340603179,1729521043454,-152.085734,0.00016438,2]
[340603180,1729521043463,-1324.27,0.00016438,2]
[340603181,1729521043473,-500.0,0.00016438,2]
[340603182,1729521043482,-528.72844537,0.00016438,2]
[340603183,1729521043492,-800.35,0.00016438,2]
[340603184,1729521043502,-500.0,0.00016438,2]
[340603185,1729521043513,-500.0,0.00016438,2]
[340603186,1729521043525,-501.46177585,0.00016438,2]
[340603187,1729521043535,-500.0,0.00016438,2]
[340603188,1729521043544,-151.0,0.00016438,2]
[340603189,1729521043554,-1037.62,0.00016438,2]
[340603190,1729521043566,-151.0,0.00016438,2]
[340603191,1729521043575,-575.09630823,0.00016438,2]
[340603192,1729521043585,-151.0,0.00016438,2]
[340603193,1729521043597,-151.0,0.00016438,2]
[340603194,1729521043606,-500.0,0.00016438,2]
[340603195,1729521043615,-500.0,0.00016438,2]
[340603196,1729521043624,-151.0,0.00016438,2]
[340603197,1729521043634,-500.0,0.00016438,2]
[340603198,1729521043643,-151.0,0.00016438,2]
[340603199,1729521043652,-151.0,0.00016438,2]
[340603200,1729521043661,-500.0,0.00016438,2]
[340603201,1729521043671,-236.548386,0.00016438,2]
[340603202,1729521043680,-500.0,0.00016438,2]
[340603203,1729521043690,-500.0,0.00016438,2]
[340603204,1729521043698,-500.0,0.00016438,2]
[340603205,1729521043708,-500.0,0.00016438,2]
[340603206,1729521043718,-500.0,0.00016438,2]
[340603207,1729521043728,-500.0,0.00016438,2]
[340603208,1729521043737,-151.0,0.00016438,2]
[340603209,1729521043747,-500.0,0.00016438,2]
[340603210,1729521043756,-500.0,0.00016438,2]
[340603211,1729521043766,-151.0,0.00016438,2]
[340603212,1729521043775,-151.0,0.00016438,2]
[340603213,1729521043784,-151.0,0.00016438,2]
[340603214,1729521043795,-500.0,0.00016438,2]
[340603215,1729521043804,-1197.5,0.00016438,2]
[340603216,1729521043814,-500.0,0.00016438,2]
[340603217,1729521043823,-2546.5,0.00016438,2]
[340603218,1729521043833,-500.0,0.00016438,2]
[340603219,1729521043842,-1620.76,0.00016438,2]
[340603220,1729521043852,-1936.56,0.00016438,2]
[340603221,1729521043861,-501.05908773,0.00016438,2]
[340603222,1729521043871,-500.0,0.00016438,2]
[340603223,1729521043882,-500.0,0.00016438,2]
[340603224,1729521043891,-1685.22,0.00016438,2]
[340603225,1729521043901,-151.0,0.00016438,2]
[340603226,1729521043911,-151.0,0.00016438,2]
[340603227,1729521043921,-1164.71,0.00016438,2]
[340603228,1729521043931,-265.56364,0.00016438,2]
[340603229,1729521043941,-598.79,0.00016438,2]
[340603230,1729521043950,-501.65059839,0.00016438,2]
[340603231,1729521043960,-500.0,0.00016438,2]
[340603232,1729521043970,-500.0,0.00016438,2]
[340603233,1729521043979,-500.0,0.00016438,2]
[340603234,1729521043990,-922.86,0.00016438,2]
[340603235,1729521043999,-541.39,0.00016438,2]
[340603236,1729521044009,-1587.96,0.00016438,2]
[340603237,1729521044019,-151.0,0.00016438,2]
[340603238,1729521044029,-3809.76,0.00016438,2]
[340603239,1729521044039,-151.0,0.00016438,2]
[340603240,1729521044049,-151.0,0.00016438,2]
[340603241,1729521044058,-151.0,0.00016438,2]
[340603242,1729521044263,-577.47067576,0.00016438,2]
[340603243,1729521044273,-1357.89,0.00016438,2]
[340603244,1729521044283,-151.0,0.00016438,2]
[340603245,1729521044294,-999.89,0.00016438,2]
[340603246,1729521044304,-151.0,0.00016438,2]
[340603247,1729521044315,-151.0,0.00016438,2]
[340603248,1729521044325,-151.0,0.00016438,2]
[340603249,1729521044335,-500.0,0.00016438,2]
[340603250,1729521044346,-2153.52,0.00016438,2]
[340603251,1729521044356,-500.0,0.00016438,2]
[340603252,1729521044366,-1932.93,0.00016438,2]
[340603253,1729521044376,-900.68,0.00016438,2]
[340603254,1729521044386,-500.0,0.00016438,2]
[340603255,1729521044395,-500.0,0.00016438,2]
[340603256,1729521044404,-719.68,0.00016438,2]
[340603257,1729521044414,-3260.33,0.00016438,2]
[340603258,1729521044426,-747.76,0.00016438,2]
[340603259,1729521044436,-1839.04,0.00016438,2]
[340603260,1729521044446,-500.0,0.00016438,2]
[340603261,1729521044456,-1000.0,0.00016438,2]
[340603262,1729521044466,-500.0,0.00016438,2]
[340603263,1729521044475,-2421.94,0.00016438,2]
[340603264,1729521044485,-500.0,0.00016438,2]
[340603265,1729521044495,-151.0,0.00016438,2]
[340603266,1729521044505,-151.0,0.00016438,2]
[340603267,1729521044516,-151.0,0.00016438,2]
[340603268,1729521044526,-151.0,0.00016438,2]
[340603269,1729521044536,-500.0,0.00016438,2]
[340603270,1729521044545,-151.0,0.00016438,2]
[340603271,1729521044555,-500.0,0.00016438,2]
[340603272,1729521044568,-500.0,0.00016438,2]
[340603273,1729521044578,-151.0,0.00016438,2]
[340603274,1729521044587,-1425.6,0.00016438,2]
[340603275,1729521044597,-151.0,0.00016438,2]
[340603276,1729521044608,-193.538562,0.00016438,2]
[340603277,1729521044617,-500.0,0.00016438,2]
[340603278,1729521044628,-500.0,0.00016438,2]
[340603279,1729521044638,-500.0,0.00016438,2]
[340603280,1729521044648,-500.0,0.00016438,2]
[340603281,1729521044659,-1375.99,0.00016438,2]
[340603282,1729521044669,-500.0,0.00016438,2]
[340603283,1729521044679,-500.0,0.00016438,2]
[340603284,1729521044689,-706.96,0.00016438,2]
[340603285,1729521044699,-500.0,0.00016438,2]
[340603286,1729521044709,-500.0,0.00016438,2]
[340603287,1729521044719,-500.0,0.00016438,2]
[340603288,1729521044728,-500.0,0.00016438,2]
[340603289,1729521044739,-500.0,0.00016438,2]
[340603290,1729521044749,-500.0,0.00016438,2]
[340603291,1729521044759,-500.0,0.00016438,2]
[340603292,1729521044769,-500.0,0.00016438,2]
[340603293,1729521044780,-151.0,0.00016438,2]
[340603294,1729521044789,-151.0,0.00016438,2]
[340603295,1729521044799,-151.0,0.00016438,2]
[340603296,1729521044809,-1109.73,0.00016438,2]
[340603297,1729521044820,-254.894852,0.00016438,2]
[340603298,1729521044830,-254.894852,0.00016438,2]
[340603299,1729521044840,-500.0,0.00016438,2]
[340603300,1729521044850,-500.0,0.00016438,2]
[340603301,1729521044859,-500.0,0.00016438,2]
[340603302,1729521044869,-2847.91,0.00016438,2]
[340603303,1729521044879,-1920.74,0.00016438,2]
[340603304,1729521044889,-2375.28,0.00016438,2]
[340603305,1729521044899,-500.0,0.00016438,2]
[340603306,1729521044909,-500.0,0.00016438,2]
[340603307,1729521044919,-500.0,0.00016438,2]
[340603308,1729521044929,-500.0,0.00016438,2]
[340603309,1729521044940,-1591.64,0.00016438,2]
[340603310,1729521044949,-500.0,0.00016438,2]
[340603311,1729521044959,-500.0,0.00016438,2]
[340603312,1729521044969,-495.954039,0.00016438,2]
[340603313,1729521044979,-495.954039,0.00016438,2]
[340603314,1729521044989,-500.0,0.00016438,2]